[Event "44th Chess Olympiad Open 2022"]
[Site "Chennai"]
[Date "2022.07.29"]
[Round "1.21"]
[White "Ali Marandi, Cemil Can"]
[Black "Chahin Godoy, Angel Eduardo"]
[Result "1-0"]
[WhiteElo "2561"]
[BlackElo "1844"]
[Annotator "TA"]
[PlyCount "81"]
[EventDate "2022.??.??"]
[TimeControl "60"]

{[%evp 9,81,11,8,-6,-8,-8,0,0,30,25,30,30,23,22,35,13,18,18,10,22,57,62,68,83,
78,80,83,35,92,100,91,83,103,106,112,116,200,222,231,230,208,236,206,181,174,
166,236,237,233,208,357,254,350,306,312,172,601,515,647,612,981,966,805,716,
1052,990,894,867,5687,5294,5932,5716,1814,1583]} 1. d4 {[%emt 0:00:03]} Nf6 {
[%emt 0:00:21]} 2. Bf4 {[%emt 0:00:16]} d5 {[%emt 0:01:43]} 3. e3 {[%emt 0:00:
00]} e6 {[%emt 0:00:54]} 4. Nd2 {[%emt 0:00:34]} c5 {[%emt 0:00:20]} 5. c3 {
[%emt 0:00:09]} Bd6 {[%emt 0:01:32]} 6. Bxd6 {[%emt 0:00:13] D00:1 d4 d5:
Unusual lines.} Qxd6 {[%emt 0:00:07]} 7. f4 {[%emt 0:00:04] 7.Bd3 injects
fresh life into this line.} cxd4 {[%emt 0:01:31]} 8. cxd4 {[%emt 0:03:03] [#]
The position is equal.} Ne4 $146 {[%emt 0:04:25]} ({Predecessor:} 8... O-O 9.
Bd3 b6 10. Qe2 Bb7 11. Ngf3 Ne4 12. O-O Nd7 13. Rfc1 Rac8 14. a3 Ndf6 {½-½ 
(26) Matuszewski,M (2518)-Mista,A (2599) Katowice 2019}) 9. Bd3 {[%emt 0:04:58]
} f5 {[%emt 0:00:05]} 10. Ngf3 {[%emt 0:01:13]} O-O {[%emt 0:00:07]} 11. O-O {
[%emt 0:01:16]} Nc6 {[%emt 0:08:27]} 12. Ne5 {[%emt 0:03:55]} Nxe5 {[%emt 0:00:
00]} 13. fxe5 {[%emt 0:00:14]} Qb4 {[%emt 0:03:57]} 14. Bxe4 {[%emt 0:08:30]}
dxe4 {[%emt 0:01:04]} 15. a3 {[%emt 0:04:09]} Qb5 {[%emt 0:14:27]} 16. Rc1 {
[%emt 0:03:48]} Bd7 {[%emt 0:20:40]} 17. Nc4 {[%emt 0:01:36]} Bc6 {[%emt 0:00:
00]} 18. b4 {[%emt 0:03:37]} (18. Qd2 $16) 18... Bd5 {[%emt 0:20:46]} (18...
Qa6 $14) 19. Nd6 $16 {[%emt 0:00:23] White now steadily converts the win.} Qd7
{[%emt 0:00:51]} 20. Rc3 {[%emt 0:01:44]} Qe7 {[%emt 0:00:35]} 21. Qh5 {
[%emt 0:00:27]} Rad8 {[%emt 0:01:24]} 22. Rfc1 {[%emt 0:01:52] 0x0.
0002df40fc02dp-1022s more active pieces.} Rxd6 {[%emt 0:03:14]} (22... b6 $16)
23. exd6 $18 {[%emt 0:00:17]} Qxd6 {[%emt 0:00:06]} 24. Rc8 {[%emt 0:02:43]}
Bc6 {[%emt 0:02:28]} 25. Rxf8+ {[%emt 0:00:08]} Qxf8 {[%emt 0:00:48] Endgame
KQR-KQB} 26. Qh4 {[%emt 0:01:10]} Qd6 {[%emt 0:01:51]} 27. Rc5 {[%emt 0:05:54]
aiming for b5.} h6 {[%emt 0:01:47]} (27... a6 {keeps fighting.} 28. Kf2 h6) 28.
b5 {[%emt 0:00:55]} Bd5 {[%emt 0:00:46]} 29. Qh5 {[%emt 0:00:00]} b6 {[%emt 0:
04:02]} (29... Kh7 $142 30. Qf7 Qd8) 30. Rc3 {[%emt 0:01:01] Strongly
threatening Qg6.} Kh7 {[%emt 0:00:14]} 31. Qf7 {[%emt 0:02:04] [#] Prevents
Qd7. Black must now prevent Rc7.} Qd8 {[%emt 0:00:13]} 32. Qc7 $40 {[%emt 0:02:
42] Black is in trouble.} ({Weaker is} 32. Qxa7 Qh4 33. Rc1 Qh5 $16) ({Resist} 
32. Rc7 $6 Qg5 33. Kh1 Bc4 $16) (32. h3 $142) 32... Qh4 $2 {[%emt 0:00:26]} (
32... Qe8) 33. Qg3 {[%emt 0:00:15] White is clearly winning.} Qh5 {[%emt 0:00:
27] Threatens to win with ...Qd1+.} 34. h3 {[%emt 0:00:00]} Qg5 {[%emt 0:03:30]
} 35. Qxg5 {[%emt 0:00:00]} hxg5 {[%emt 0:00:05] KR-KB} 36. Rc7 {[%emt 0:00:00]
} f4 {[%emt 0:00:18]} 37. Kf2 {[%emt 0:00:00]} Kg6 {[%emt 0:02:05]} 38. Rxa7 {
[%emt 0:00:00]} Bc4 {[%emt 0:00:06]} 39. a4 {[%emt 0:00:00]} Bb3 {[%emt 0:00:
13]} 40. a5 {[%emt 0:00:00]} bxa5 {[%emt 0:00:00]} 41. b6 {[%emt 0:28:41]
Weighted Error Value: White=0.13 (very precise) / Black=0.54} 1-0

[Event "44th Chess Olympiad Open 2022"]
[Site "Chennai"]
[Date "2022.07.29"]
[Round "1.21"]
[White "Chinchilla, Alejandro Jose"]
[Black "Yilmaz, Mustafa"]
[Result "0-1"]
[WhiteElo "2166"]
[BlackElo "2634"]
[Annotator "TA"]
[PlyCount "62"]
[EventDate "2022.??.??"]
[TimeControl "60"]

{[%evp 15,62,14,40,22,16,-8,0,-25,-14,-70,-54,-63,-60,-121,-139,-129,-130,-214,
-222,-213,-219,-262,-267,-265,-277,-266,-253,-291,-291,-320,-316,-298,-293,
-301,-293,-338,-337,-343,-320,-344,-331,-396,-395,-433,-436,-513,-524,-707,
-692]} 1. e4 {[%emt 0:00:19]} c5 {[%emt 0:00:06]} 2. Nf3 {[%emt 0:00:15]} d6 {
[%emt 0:00:07]} 3. d4 {[%emt 0:00:06]} cxd4 {[%emt 0:00:06]} 4. Nxd4 {[%emt 0:
00:00]} Nf6 {[%emt 0:00:05]} 5. Nc3 {[%emt 0:00:06]} a6 {[%emt 0:00:02]} 6. Be3
{[%emt 0:00:47]} e5 {[%emt 0:00:05]} 7. Nf3 {[%emt 0:00:20]} Be7 {[%emt 0:00:
00]} 8. Bc4 {[%emt 0:00:54]} Be6 {[%emt 0:00:21]} 9. Bb3 {[%emt 0:06:00] 9.Bb3
is better than 9.Bxe6. B90: Sicilian Najdorf: Unusual White 6th moves, 6 Be3
Ng4 and 6 Be3 e5.} Nbd7 {[%emt 0:00:30]} 10. Bxe6 {[%emt 0:01:26]} fxe6 {
[%emt 0:00:07]} 11. Ng5 {[%emt 0:00:07] The position is equal.} Nf8 {[%emt 0:
00:00]} 12. Qf3 {[%emt 0:02:16]} (12. O-O $11) 12... h6 $15 {[%emt 0:06:50]}
13. Qh3 {[%emt 0:00:34]} Qd7 {[%emt 0:02:35] [#]} 14. O-O $146 {[%emt 0:04:25]}
(14. O-O-O $15) ({Predecessor:} 14. Rd1 Rg8 15. Nf3 Qc6 16. Nd2 d5 17. exd5
exd5 18. Nf3 N8d7 19. O-O Rd8 20. Rfe1 {½-½ (102) Moiseenko,V (2526)-Sakaev,
K (2596) Khanty-Mansiysk 2019}) 14... Rg8 $1 $17 {[%emt 0:08:33]} 15. Nf3 {
[%emt 0:00:12]} g5 $1 {[%emt 0:06:57]} 16. Qxh6 {[%emt 0:02:56]} (16. Nd2 $17)
16... Rg6 $1 $19 {[%emt 0:03:45]} 17. Qh8 {[%emt 0:00:00] [#]} O-O-O $1 {
[%emt 0:55:55] aiming for ...N8h7.} 18. Nxe5 {[%emt 0:52:44]} ({Avoid the trap
} 18. Nxg5 $2 {[#]} N8h7 $1 19. Qxd8+ Bxd8 $19) 18... dxe5 {[%emt 0:00:00]} 19.
Rad1 {[%emt 0:00:31]} Qc6 {[%emt 0:00:00] Strongly threatening ...N8h7.} 20.
Rxd8+ {[%emt 0:01:59]} Kxd8 {[%emt 0:00:00][%cal Yc8d8,Yd8e8,Ye8f7]} 21. a4 {
[%emt 0:06:54]} Rg8 {[%emt 0:00:00]} ({Stronger than} 21... Nxe4 22. Rd1+ Ke8
23. Qxe5 Nxc3 24. Qxc3 $19) 22. Rd1+ {[%emt 0:00:00]} Ke8 {[%emt 0:00:00]} 23.
Qh6 {[%emt 0:00:24]} Nxe4 {[%emt 0:00:00]} 24. Qh5+ {[%emt 0:02:55]} Rg6 {
[%emt 0:00:00]} 25. Rd3 {[%emt 0:04:36]} Nf6 {[%emt 0:00:00]} 26. Qd1 {[%emt 0:
01:04]} Kf7 {[%emt 0:00:00]} 27. Bd2 {[%emt 0:02:03]} N8d7 {[%emt 0:00:00]} 28.
Rg3 {[%emt 0:00:56]} g4 {[%emt 0:00:00]} 29. Qe2 {[%emt 0:04:11]} Bd6 {[%emt 0:
00:00] Black is clearly winning.} 30. h3 {[%emt 0:03:44]} e4 {[%emt 0:00:00]}
31. Re3 {[%emt 0:00:13]} Bf4 {[%emt 0:00:00] Black took control after the
opening. Weighted Error Value: White=0.40/Black=0.03 (flawless)} 0-1

[Event "44th Chess Olympiad Open 2022"]
[Site "Chennai"]
[Date "2022.07.29"]
[Round "1.21"]
[White "Gavarrete, Joel"]
[Black "Sanal, Vahap"]
[Result "0-1"]
[WhiteElo "2035"]
[BlackElo "2574"]
[Annotator "TA"]
[PlyCount "106"]
[EventDate "2022.??.??"]
[TimeControl "60"]

{[%evp 10,106,6,-1,6,-4,-7,-15,-15,-12,-11,-28,-6,-19,0,0,-8,-25,-27,-27,-16,
-23,-20,-50,-47,-60,-57,-58,-65,-55,-52,-66,-33,-37,-33,-43,-29,-29,-29,-32,
-37,-40,-41,-48,-25,-27,-27,-34,-25,-25,-32,-32,-20,-42,-13,-27,-8,-16,-16,-23,
-9,-38,-30,-69,-24,-64,-63,-74,-28,-74,-8,-74,-48,-74,-74,-74,-74,-74,-74,-74,
-74,-74,-74,-74,-74,-402,-375,-427,-402,-432,-432,-432,-414,-432,-417,-437,
-436,-691,-637]} 1. Nf3 {[%emt 0:00:07]} d5 {[%emt 0:00:53]} 2. b3 {[%emt 0:00:
00]} Bf5 {[%emt 0:00:27]} 3. Bb2 {[%emt 0:01:38]} e6 {[%emt 0:00:09]} 4. e3 {
[%emt 0:01:49]} Nf6 {[%emt 0:00:29]} 5. Be2 {[%emt 0:01:40]} h6 {[%emt 0:00:09]
} 6. O-O {[%emt 0:01:08]} Be7 {[%emt 0:00:11] A06: Réti Opening: 1 Nf3 d5.} 7.
d3 {[%emt 0:04:35]} O-O {[%emt 0:00:38]} 8. Nbd2 {[%emt 0:03:08]} Nbd7 {
[%emt 0:01:37] The position is equal.} 9. Re1 {[%emt 0:02:30]} a5 {[%emt 0:00:
00]} 10. a4 {[%emt 0:01:16]} Bh7 {[%emt 0:01:27]} 11. Bf1 {[%emt 0:05:43] [#]}
Re8 $146 {[%emt 0:06:03]} ({Predecessor:} 11... c6 12. e4 dxe4 13. dxe4 Bb4 14.
Qe2 Qe7 15. Red1 Rfd8 16. g3 Nc5 17. e5 Nd5 {0-1 (33) Tolush,A-Smyslov,V
Moscow 1944}) 12. e4 {[%emt 0:21:57]} dxe4 {[%emt 0:01:54]} 13. Nxe4 {[%emt 0:
00:00]} Nxe4 {[%emt 0:00:46]} 14. dxe4 {[%emt 0:00:21]} Nc5 {[%emt 0:03:12]}
15. Bd3 {[%emt 0:02:52]} Nxd3 {[%emt 0:01:30]} 16. Qxd3 {[%emt 0:05:21]} Qxd3 {
[%emt 0:02:05]} 17. cxd3 {[%emt 0:02:01]} Red8 {[%emt 0:00:26]} 18. Red1 {
[%emt 0:08:38]} f6 {[%emt 0:01:26]} 19. Kf1 {[%emt 0:08:43]} Rd7 {[%emt 0:00:
00]} 20. Bc3 {[%emt 0:05:32]} Kf8 {[%emt 0:02:34]} 21. Ke2 {[%emt 0:03:16]} b6
{[%emt 0:06:35]} 22. Nd2 {[%emt 0:00:32]} Rad8 {[%emt 0:01:15]} 23. Nc4 {
[%emt 0:00:25]} e5 {[%emt 0:01:08]} 24. f3 {[%emt 0:06:05]} Bg8 {[%emt 0:01:01]
} 25. Bb2 {[%emt 0:04:23]} Be6 {[%emt 0:01:18]} 26. Ba3 {[%emt 0:00:00]} Bxa3
27. Rxa3 {[%emt 0:00:00]} h5 28. Raa1 {[%emt 0:02:02]} h4 {[%emt 0:00:54]} 29.
Rac1 {[%emt 0:00:05]} Ke7 {[%emt 0:00:59]} (29... g5 {is more complex.} 30. Rc3
Ke7 31. Ke3 Rh8) 30. Rc3 {[%emt 0:17:51]} Rb8 {[%emt 0:01:52]} (30... g5 {
keeps more tension.} 31. Ke3 Ke8 32. Rb1 Kf7) 31. Rdc1 {[%emt 0:01:27]} (31.
Ke3 {with more complications.} Re8 32. Rcc1 Red8 33. Rc3) 31... g6 {[%emt 0:00:
00]} 32. Ke3 {[%emt 0:00:00]} Re8 33. Nd2 {[%emt 0:02:36]} Kd8 {[%emt 0:00:11]}
34. Rc6 {[%emt 0:06:39]} Rf7 {[%emt 0:32:13]} 35. h3 {[%emt 0:00:00]} Bc8 {
[%emt 0:01:31]} 36. R6c3 {[%emt 0:03:36]} Bb7 {[%emt 0:02:46]} 37. R1c2 {
[%emt 0:01:52][%cal Yb3b4]} Rd7 {[%emt 0:01:13]} (37... Re6 {feels hotter.} 38.
f4 exf4+ 39. Kxf4 g5+) 38. Ke2 {[%emt 0:00:00]} Kc8 {[%emt 0:00:22]} (38... c5
$17) 39. Nc4 {[%emt 0:00:00]} (39. Rb2 $1 $11) 39... Kb8 (39... Re6 $1 $17) 40.
Ke3 {[%emt 0:04:10]} (40. Rb2 $1 $11 {keeps the balance.}) 40... Red8 {[%emt 0:
00:00]} 41. Rc1 {[%emt 0:03:58]} Ba6 42. R1c2 {[%emt 0:02:22]} Rd4 {[%emt 0:00:
00]} 43. Nb2 {[%emt 0:00:00]} R8d7 {[%emt 0:34:06] Black is more active.} 44.
Nc4 {[%emt 0:09:40]} g5 {[%emt 0:07:25]} 45. Rd2 {[%emt 0:00:54]} Rd8 {[%emt 0:
00:00]} 46. Rdc2 {[%emt 0:00:00]} c6 47. Nxb6 $2 {[%emt 0:01:27] Loses the
game.} (47. Ke2 $17 {is a better chance.}) 47... Rxd3+ $19 {[%emt 0:00:00]} 48.
Kf2 {[%emt 0:00:00]} Rxc3 {[%emt 0:00:00]} 49. Rxc3 {[%emt 0:00:00] [#]} Kb7 {
[%emt 0:00:00]} 50. Nc4 {[%emt 0:00:00] Prevents Rd2+.} Bxc4 {[%emt 0:00:00]}
51. Rxc4 {[%emt 0:00:00]} Rd2+ {[%emt 0:00:00]} 52. Kf1 {[%emt 0:00:00] [#]}
Rd3 $1 {[%emt 0:00:00]} 53. b4 {[%emt 0:00:00]} (53. Rc5 $142 Kb6 54. Rc2)
53... Rd4 {[%emt 0:00:00] Weighted Error Value: White=0.32/ Black=0.09 
(flawless)} 0-1

[Event "44th Chess Olympiad Open 2022"]
[Site "Chennai"]
[Date "2022.07.29"]
[Round "1.22"]
[White "Rodshtein, Maxim"]
[Black "Rurik Capella"]
[Result "1-0"]
[WhiteElo "2596"]
[BlackElo "1952"]
[Annotator "TA"]
[PlyCount "89"]
[EventDate "2022.??.??"]
[TimeControl "60"]

{[%evp 22,89,66,45,90,79,82,40,72,75,86,18,18,18,47,40,41,38,20,30,26,31,39,22,
142,151,389,385,354,350,412,419,673,653,770,762,717,683,587,33,1072,813,2177,
2077,2538,0,1763,1333,29983,29984,29984,0,12843,12843,12844,12843,29982,29982,
29982,12839,29984,29985,29986,29984,29985,5816,29987,12837,29990,29991]} 1. d4
{[%emt 0:00:04]} Nf6 {[%emt 0:00:10]} 2. c4 {[%emt 0:00:09]} c5 {[%emt 0:00:29]
} 3. d5 {[%emt 0:00:17]} e6 {[%emt 0:00:28]} 4. Nc3 {[%emt 0:00:15]} exd5 {
[%emt 0:00:14]} 5. cxd5 {[%emt 0:00:05]} d6 {[%emt 0:00:29]} 6. Nf3 {[%emt 0:
00:00]} g6 {[%emt 0:00:56]} 7. Bf4 {[%emt 0:01:01]} Bg7 {[%emt 0:01:12]} 8.
Qa4+ {[%emt 0:00:39]} Bd7 {[%emt 0:03:20]} 9. Qb3 {[%emt 0:00:10]} Qc7 {
[%emt 0:03:16]} 10. e4 {[%emt 0:00:34]} Nh5 {[%emt 0:02:01]} 11. Be3 {[%emt 0:
00:00]} O-O {[%emt 0:03:06]} 12. Nd2 {[%emt 0:05:50]} a6 {[%emt 0:03:37] A70:
Modern Benoni: 6 e4 g6 7 Nf3.} 13. a4 {[%emt 0:02:08]} f5 {[%emt 0:11:23]
aiming for ...f4.} 14. exf5 {[%emt 0:03:45]} (14. Nc4 {seems wilder.} Bxc3+ 15.
Qxc3 fxe4 16. Bh6) 14... gxf5 {[%emt 0:04:08] White is slightly better.} 15.
Be2 {[%emt 0:03:27]} Be8 {[%emt 0:05:52] [#]} 16. Nc4 {[%emt 0:20:26]} ({
White should try} 16. Nf3 $1 $16) 16... Nd7 $11 {[%emt 0:11:02] [#]} 17. Qd1
$146 {[%emt 0:13:03]} ({Predecessor:} 17. O-O f4 18. Bd2 Ne5 19. Nxe5 Bxe5 20.
Ne4 Qg7 21. Bf3 Nf6 22. Nxf6+ Rxf6 23. Bc3 Rf5 24. Rfe1 b5 25. axb5 Bxb5 26.
Bxe5 {½-½ (26) Kuljasevic,D (2550)-Rogulj,B (2400) Mali Losinj 2019}) 17...
Nhf6 {[%emt 0:29:45]} 18. Bf4 {[%emt 0:23:59]} Ne5 {[%emt 0:02:21]} 19. Bxe5 {
[%emt 0:02:19]} (19. Nxe5 {with more complications.} dxe5 20. d6 Qc6 21. Bxe5
Qxg2 22. Bf3) 19... dxe5 {[%emt 0:00:02]} 20. d6 $36 {[%emt 0:00:16] White is
more active.} Qd8 {[%emt 0:02:20]} 21. Nxe5 {[%emt 0:00:56]} Kh8 {[%emt 0:02:
41]} 22. f4 {[%emt 0:08:13][%cal Yf2f4,Yf4e5,Ye5e6]} Ne4 {[%emt 0:00:57] White
leaves nothing to chance now.} (22... Nd7 $11 {remains equal.}) 23. Nxe4 $16 {
[%emt 0:00:22]} Bxe5 {[%emt 0:00:25]} (23... fxe4 $16 24. O-O Bc6) 24. fxe5 $18
{[%emt 0:01:26]} fxe4 {[%emt 0:01:01]} 25. Qd2 {[%emt 0:02:03] Prevents Qg5.}
Qh4+ {[%emt 0:06:47]} 26. g3 {[%emt 0:00:49]} Qh3 {[%emt 0:00:32]} (26... e3
$142 27. Qc3 (27. gxh4 exd2+ 28. Kxd2 Rf5 $18) (27. Qxe3 Qb4+ 28. Qc3 Bd7 $18)
27... Qe4 28. e6+ Kg8) 27. Qc3 {[%emt 0:01:10] [#] And now e6+ would win.} Qg2
{[%emt 0:01:07]} 28. e6+ {[%emt 0:02:19]} Kg8 {[%emt 0:00:03]} 29. Rf1 {
[%emt 0:01:48]} Bh5 {[%emt 0:00:31][%csl Gh5][%cal Rg2e2]} 30. Qd2 {[%emt 0:03:
09]} (30. Bc4 $18 Rxf1+ 31. Bxf1) 30... Bxe2 $4 {[%emt 0:02:03]} (30... e3 $14
31. Qxe3 Bxe2 32. Qg5+ (32. Qxe2 Rxf1+ 33. Qxf1 Qe4+ 34. Qe2 Qh1+ 35. Qf1 Qe4+
36. Qe2 Qh1+ 37. Qf1 Qe4+ $11) 32... Kh8 33. Qe5+ Kg8 34. Qxe2 Rxf1+ 35. Qxf1
Qe4+ 36. Qe2 Qh1+ 37. Qf1 Qe4+ 38. Qe2 Qh1+ 39. Kf2 (39. Qf1 Qe4+ $11) 39...
Rf8+ 40. Ke3 Qxa1) 31. Qxe2 {[%emt 0:00:00]} Rxf1+ {[%emt 0:00:05]} 32. Qxf1 {
[%emt 0:00:05]} Qxb2 $14 {[%emt 0:00:02] Endgame KQR-KQR} 33. Qf7+ {[%emt 0:00:
26]} Kh8 {[%emt 0:00:02]} 34. Rd1 {[%emt 0:00:17] White wants to mate with e7.
Active counter play!} Qxh2 {[%emt 0:02:20]} 35. Qf6+ {[%emt 0:00:17]} Kg8 {
[%emt 0:00:02]} 36. Qf7+ {[%emt 0:00:46]} (36. Qg5+ $142 Kh8 37. d7 Qh1+ 38.
Kd2 Qf3 39. e7 Qd3+ 40. Ke1 Qc3+ 41. Rd2) 36... Kh8 $18 {[%emt 0:00:01]} 37. e7
{[%emt 0:01:08] Qf8+ would kill now.} Qxg3+ {[%emt 0:02:38]} 38. Ke2 {[%emt 0:
00:04] Threatening mate with Qf8+.} Qh2+ {[%emt 0:00:52]} 39. Qf2 {[%emt 0:01:
04]} Qh5+ {[%emt 0:00:27]} 40. Ke3 {[%emt 0:00:15]} (40. Ke1 $142 Qh1+ 41. Kd2
Qh6+ 42. Kc2 Rg8 43. d7 Qe6 44. e8=Q Qa2+ 45. Kc1) 40... Qh6+ {[%emt 0:00:57]}
41. Qf4 {[%emt 0:30:37]} Qg7 {[%emt 0:30:43]} 42. Kxe4 {[%emt 0:00:00]} Qg2+ {
[%emt 0:00:00]} 43. Kd3 {[%emt 0:00:00]} (43. Kf5 $142 Qg6+ 44. Ke5 Qh5+ 45.
Ke6 Rg8 46. Qe5+ Qxe5+ 47. Kxe5 Rg5+ 48. Kf4) 43... c4+ {[%emt 0:00:00]} 44.
Kc3 {[%emt 0:00:00]} (44. Ke3 $142 Qg7 45. Qd4 Qxd4+ 46. Kxd4 Rg8 47. d7 Rg4+
48. Ke3 h5 49. e8=Q+ Kg7 50. Qe7+ Kh6 51. Rd6+ Rg6 52. d8=Q Rf6 53. Qxf6+ Kh7
54. Qfh8#) 44... Qh3+ {[%emt 0:00:00]} 45. Kd4 {[%emt 0:00:00] Weighted Error
Value: White=0.52/ Black=1.49} 1-0

[Event "44th Chess Olympiad Open 2022"]
[Site "Chennai"]
[Date "2022.07.29"]
[Round "1.22"]
[White "Boruchovsky, Avital"]
[Black "Willem Blijstra"]
[Result "1-0"]
[WhiteElo "2551"]
[BlackElo "2198"]
[Annotator "TA"]
[PlyCount "49"]
[EventDate "2022.??.??"]
[TimeControl "60"]

{[%evp 9,49,19,31,20,27,36,32,10,6,8,31,2,16,-4,0,0,0,0,34,37,58,29,142,147,
220,221,225,222,223,229,263,263,313,309,319,317,330,304,399,406,390,373]} 1. e4
{[%emt 0:00:10]} c5 {[%emt 0:00:23]} 2. Nf3 {[%emt 0:00:19]} d6 {[%emt 0:00:41]
} 3. Bb5+ {[%emt 0:00:26]} Nd7 {[%emt 0:01:00]} 4. Ba4 {[%emt 0:00:07]} Ngf6 {
[%emt 0:07:25]} 5. O-O {[%emt 0:00:36]} a6 {[%emt 0:11:45]} 6. c4 {[%emt 0:00:
00] Prevents b5. B51: Sicilian: Moscow Variation (3 Bb5+) without 3...Bd7.} e5
{[%emt 0:06:35]} 7. Nc3 {[%emt 0:11:48]} Be7 {[%emt 0:00:21]} 8. Ne1 $5 {
[%emt 0:06:49] White is slightly better. Exploring less charted territory.} O-O
{[%emt 0:00:29][%cal Yb7b5]} 9. d3 {[%emt 0:02:12]} Nb8 {[%emt 0:06:34] [#]}
10. Nc2 $146 {[%emt 0:02:19]} ({Predecessor:} 10. f4 exf4 11. Bxf4 Bd7 12. Bxd7
Qxd7 13. Nd5 Nxd5 14. exd5 Bf6 15. Qd2 Qc7 16. Nf3 {1-0 (60) Zhivotovskaya,A 
(1755)-Chernov,M (1962) St Petersburg 2013}) 10... Nc6 {[%emt 0:07:07]} 11. a3
{[%emt 0:02:55]} Nd4 {[%emt 0:02:13]} 12. Nxd4 {[%emt 0:03:19]} cxd4 {[%emt 0:
01:51]} 13. Ne2 {[%emt 0:00:05]} Ne8 {[%emt 0:00:00]} 14. Ng3 {[%emt 0:05:35]}
g6 {[%emt 0:00:54]} 15. f4 {[%emt 0:01:17]} f5 {[%emt 0:03:56] [#]} (15... Bh4
$11 {remains equal.}) 16. exf5 $1 $16 {[%emt 0:00:00]} gxf5 {[%emt 0:00:10]} (
16... Bxf5 $16 {keeps fighting.} 17. fxe5 Ng7) 17. Qe2 $18 {[%emt 0:01:57]} Bf6
{[%emt 0:03:03]} 18. fxe5 {[%emt 0:01:47]} Bxe5 {[%emt 0:07:25] [#]} 19. Bf4 $1
{[%emt 0:00:18]} Bf6 {[%emt 0:01:51]} 20. Nh5 {[%emt 0:05:13] Bxe8 is the
strong threat.} Ng7 {[%emt 0:00:30]} 21. Nxf6+ {[%emt 0:06:47]} Qxf6 {[%emt 0:
00:17]} 22. Rae1 {[%emt 0:00:12]} Rf7 {[%emt 0:00:00]} 23. c5 {[%emt 0:01:18]}
Be6 {[%emt 0:02:37]} 24. Bxd6 {[%emt 0:01:46] And now Be5 would win. This
bishop pair is nice.} Bd5 {[%emt 0:02:20]} 25. Qe5 {[%emt 0:00:26] Weighted
Error Value: White=0.06 (flawless) /Black=0.33} 1-0

[Event "44th Chess Olympiad Open 2022"]
[Site "Chennai"]
[Date "2022.07.29"]
[Round "1.22"]
[White "Ursus van Bemmelen"]
[Black "Nabaty, Tamir"]
[Result "0-1"]
[WhiteElo "2145"]
[BlackElo "2631"]
[Annotator "TA"]
[PlyCount "64"]
[EventDate "2022.??.??"]
[TimeControl "60"]

{[%evp 9,64,21,16,23,16,22,16,-16,6,16,16,9,1,0,0,0,0,-7,0,0,0,0,-4,-17,-3,-18,
-22,-11,0,0,1,0,0,0,0,0,0,0,0,0,0,0,-6,-31,-32,-29,-28,-109,-110,-268,-267,
-263,-238,-294,-256,-259,-206]} 1. Nf3 {[%emt 0:00:18]} d5 {[%emt 0:00:18]} 2.
g3 {[%emt 0:00:31]} Nd7 {[%emt 0:01:03]} 3. d4 {[%emt 0:01:38]} g6 {[%emt 0:00:
00]} 4. Bg2 {[%emt 0:01:44]} Bg7 {[%emt 0:01:02]} 5. O-O {[%emt 0:00:54]} Ngf6
{[%emt 0:03:52]} 6. b3 {[%emt 0:01:05] D02:1 d4 d5 2 Nf3 sidelines, including
2...Nf6 3 g3 and 2...Nf6 3 Bf4.} c5 {[%emt 0:01:58]} 7. e3 {[%emt 0:06:27]} O-O
{[%emt 0:01:49]} 8. Bb2 {[%emt 0:03:05] The position is equal.} Qc7 $5 {
[%emt 0:09:41] [#] A promising side line.} 9. Qe2 $146 {[%emt 0:10:26]} ({
Predecessor:} 9. Nbd2 b6 10. Rc1 Ba6 11. Re1 Rad8 12. c4 Qb8 13. Rc2 Bb7 14.
Qa1 Qa8 15. h3 {0-1 (22) Salazar,P (2200)-Martin Del Campo C,J (2254) Merida
2000}) 9... b6 {[%emt 0:06:20]} 10. Na3 {[%emt 0:08:37]} Bb7 {[%emt 0:05:35]}
11. c4 {[%emt 0:03:56]} Rac8 {[%emt 0:05:06]} 12. Rac1 {[%emt 0:00:46]} Qb8 {
[%emt 0:02:40]} 13. Rfd1 {[%emt 0:04:09]} Rfd8 {[%emt 0:09:34]} 14. Bh3 {
[%emt 0:04:38]} e6 {[%emt 0:15:01][%cal Ye7e6,Ye6e5,Ye5e4]} 15. cxd5 {[%emt 0:
01:55]} Bxd5 {[%emt 0:00:25]} 16. Bg2 {[%emt 0:12:07]} cxd4 {[%emt 0:00:00]}
17. Bxd4 {[%emt 0:00:57]} Rxc1 {[%emt 0:03:13]} 18. Rxc1 {[%emt 0:00:00]} e5 {
[%emt 0:00:28]} 19. Bb2 {[%emt 0:00:22]} e4 {[%emt 0:05:49]} 20. Ne1 {[%emt 0:
02:52]} Nc5 {[%emt 0:01:04][%cal Yc5d3]} 21. Rd1 {[%emt 0:04:06] Prevents Nd3.}
Bb7 {[%emt 0:00:00][%cal Yd5b7,Yb7a6,Ya6c4]} 22. Nc4 {[%emt 0:08:13]} Ba6 {
[%emt 0:02:05]} 23. Rxd8+ {[%emt 0:00:00]} Qxd8 {[%emt 0:00:00]} 24. Qd2 {
[%emt 0:07:55]} Qd5 {[%emt 0:01:07]} 25. Bxf6 {[%emt 0:00:00]} (25. Qd4 {
with more complications.} Bxc4 26. bxc4 Qa8 27. Qd1) 25... Bxc4 {[%emt 0:00:00]
} 26. Qxd5 {[%emt 0:00:00]} (26. Bd4 {is more complex.} Bb5 27. Qb4 Bxd4 28.
Qxd4 Bc6 29. Nc2) 26... Bxd5 {[%emt 0:00:00]} 27. Bxg7 {[%emt 0:00:00]} Kxg7
$11 {[%emt 0:02:25] KBN-KBN} 28. Bf1 {[%emt 0:00:00]} (28. Kf1 $11) 28... a5
$17 {[%emt 0:00:00][%cal Yc5b3] ...Nxb3! is the strong threat.} 29. Bb5 $2 {
[%emt 0:00:00] [#] Now White is beyond hope.} (29. Bg2 $17) 29... Nxb3 $1 $19 {
[%emt 0:00:00]} 30. axb3 {[%emt 0:00:00]} Bxb3 {[%emt 0:00:00]} 31. Kf1 {
[%emt 0:00:00] aiming for Ke2.} a4 {[%emt 0:00:00]} 32. Bxa4 {[%emt 0:00:00]}
Bxa4 {[%emt 0:00:00] Weighted Error Value: White=0.17 (very precise) /Black=0.
02 (flawless)} 0-1